[Event "LJ Slovak Open 2022"]
[Site "Liptovsky Jan"]
[Date "2022.06.26"]
[Round "7.27"]
[White "Miciak, Emanuel"]
[Black "Mazak, Ryan"]
[Result "1-0"]
[ECO "A52"]
[WhiteElo "1804"]
[BlackElo "1575"]
[Annotator "NA RC"]
[PlyCount "33"]
[EventDate "2022.06.23"]
[EventType "swiss"]
[EventCountry "SVK"]
[SourceTitle "playchess.com"]
[Source "ChessBase"]
[SourceQuality "1"]
[TimeControl "3600+30"]

1. d4 {[%emt 0:00:06]} Nf6 {[%emt 0:00:12]} 2. c4 {[%emt 0:00:09]} e5 {[%emt 0:00:09]} 3. dxe5 {[%emt 0:00:16]} Ng4 {[%emt 0:00:09]} 4. Nf3 {[%emt 0:00:19]} d6 {[%emt 0:00:26]} 5. e3 {[%emt 0:00:56]} Nxe5 {[%emt 0:00:44]} 6. Nxe5 {[%emt 0:00:32]} dxe5 {[%emt 0:00:16]} 7. Qxd8+ {[%emt 0:00:36]} Kxd8 {[%emt 0:00:13]} 8. Be2 {[%emt 0:00:22]} Be6 {[%emt 0:01:23]} 9. O-O {[%emt 0:00:27]} c6 {[%emt 0:01:06]} 10. b3 {[%emt 0:00:50]} f6 {[%emt 0:00:37]} 11. Bb2 {[%emt 0:02:05]} Kc7 {[%emt 0:01:19]} 12. Nc3 {[%emt 0:00:44]} Nd7 {[%emt 0:01:17]} 13. Rac1 {[%emt 0:01:56]} Be7 {[%emt 0:01:07]} 14. Rfd1 {[%emt 0:04:58]} Rad8 {[%emt 0:03:10]} 15. Nd5+ {[%emt 0:03:22]} Kb8 {[%emt 0:02:03]} 16. Kf1 {[%emt 0:06:40]} g6 {[%emt 0:07:53]} 17. g3 {[%emt 0:17:59]} 1-0

[Event "LJ Slovak Open 2022"]
[Site "Liptovsky Jan"]
[Date "2022.06.26"]
[Round "7.28"]
[White "Gay, Lukas"]
[Black "Zeman, Jan"]
[Result "1/2-1/2"]
[ECO "B60"]
[WhiteElo "1480"]
[BlackElo "1726"]
[Annotator "NA RC"]
[PlyCount "98"]
[EventDate "2022.06.23"]
[EventType "swiss"]
[EventCountry "SVK"]
[SourceTitle "playchess.com"]
[Source "ChessBase"]
[SourceQuality "1"]
[TimeControl "3600+30"]

1. e4 {[%emt 0:00:06]} c5 {[%emt 0:00:51]} 2. Nf3 {[%emt 0:00:08]} Nc6 {[%emt 0:00:06]} 3. d4 {[%emt 0:00:22]} cxd4 {[%emt 0:00:10]} 4. Nxd4 {[%emt 0:00:31]} d6 {[%emt 0:00:12]} 5. Nc3 {[%emt 0:00:34]} Nf6 {[%emt 0:00:30]} 6. Bg5 {[%emt 0:00:24]} Bd7 {[%emt 0:01:11]} 7. Bb5 {[%emt 0:00:49]} Nxd4 {[%emt 0:02:18]} 8. Bxd7+ {[%emt 0:00:48]} Nxd7 {[%emt 0:00:30]} 9. Qxd4 {[%emt 0:00:25]} Qa5 {[%emt 0:00:55]} 10. Bd2 {[%emt 0:00:47]} Qe5 {[%emt 0:01:01]} 11. Qa4 {[%emt 0:01:09]} a6 {[%emt 0:00:45]} 12. O-O-O {[%emt 0:03:15]} b5 {[%emt 0:00:08]} 13. Qa5 {[%emt 0:00:59]} e6 {[%emt 0:01:19]} 14. f4 {[%emt 0:01:18]} Qc5 {[%emt 0:00:53]} 15. Rhe1 {[%emt 0:01:17]} Be7 {[%emt 0:00:41]} 16. Be3 {[%emt 0:02:30]} Qc8 {[%emt 0:00:26]} 17. Bd4 {[%emt 0:00:50]} O-O {[%emt 0:01:12]} 18. Ne2 {[%emt 0:01:19]} Qc6 {[%emt 0:00:55]} 19. Ng3 {[%emt 0:00:31]} Rfc8 {[%emt 0:01:39]} 20. Qd2 {[%emt 0:01:28]} Qc4 {[%emt 0:02:02]} 21. Kb1 {[%emt 0:00:29]} a5 {[%emt 0:01:56]} 22. Re3 {[%emt 0:00:42]} b4 {[%emt 0:01:08]} 23. Qd3 {[%emt 0:03:02]} e5 {[%emt 0:00:37]} 24. Qxc4 {[%emt 0:00:24]} Rxc4 {[%emt 0:00:11]} 25. Bxe5 {[%emt 0:00:58]} dxe5 {[%emt 0:02:18]} 26. Rxd7 {[%emt 0:00:09]} exf4 {[%emt 0:00:44]} 27. Red3 {[%emt 0:00:19]} fxg3 {[%emt 0:01:00]} 28. Rxe7 {[%emt 0:00:07]} Kf8 {[%emt 0:01:10]} 29. Rdd7 {[%emt 0:01:46]} Kg8 {[%emt 0:07:07]} 30. hxg3 {[%emt 0:01:08]} Rf8 {[%emt 0:00:29]} 31. b3 {[%emt 0:01:17]} Rc3 {[%emt 0:00:46]} 32. Rd3 {[%emt 0:00:04]} Rc6 {[%emt 0:02:36]} 33. Red7 {[%emt 0:00:26]} g6 {[%emt 0:00:17]} 34. Rd8 {[%emt 0:00:11]} Ra6 {[%emt 0:01:32]} 35. Kb2 {[%emt 0:00:31]} h5 {[%emt 0:01:16]} 36. a3 {[%emt 0:00:20]} Kg7 {[%emt 0:01:21]} 37. Rxf8 {[%emt 0:00:06]} Kxf8 {[%emt 0:00:20]} 38. Rd4 {[%emt 0:00:11]} bxa3+ {[%emt 0:00:27]} 39. Kxa3 {[%emt 0:00:06]} Rf6 {[%emt 0:01:08]} 40. c4 {[%emt 0:00:15]} Rf2 {[%emt 0:00:17]} 41. b4 {[%emt 0:01:01]} axb4+ {[%emt 0:01:13]} 42. Kxb4 {[%emt 0:00:06]} Rb2+ {[%emt 0:00:28]} 43. Ka5 {[%emt 0:00:35]} Rxg2 {[%emt 0:00:42]} 44. Rd3 {[%emt 0:01:46]} Re2 {[%emt 0:00:30]} 45. c5 {[%emt 0:00:09]} Rxe4 {[%emt 0:01:08]} 46. c6 {[%emt 0:00:15]} Ke8 {[%emt 0:01:18]} 47. c7 {[%emt 0:01:00]} Rc4 {[%emt 0:01:06]} 48. Rd8+ {[%emt 0:00:06]} Ke7 {[%emt 0:00:16]} 49. Rc8 {[%emt 0:00:20]} Ke6 {[%emt 0:01:20]} 1/2-1/2

[Event "LJ Slovak Open 2022"]
[Site "Liptovsky Jan"]
[Date "2022.06.26"]
[Round "7.29"]
[White "Staron, Ladislav"]
[Black "Szaszak, Lukas"]
[Result "1/2-1/2"]
[ECO "D14"]
[WhiteElo "1695"]
[BlackElo "1454"]
[Annotator "NA"]
[PlyCount "39"]
[EventDate "2022.06.23"]
[EventType "swiss"]
[EventCountry "SVK"]
[SourceTitle "playchess.com"]
[Source "ChessBase"]
[SourceQuality "1"]
[TimeControl "3600+30"]

1. d4 {[%emt 0:01:36]} d5 {[%emt 0:00:14]} 2. Nf3 {[%emt 0:00:08]} Nf6 {[%emt 0:00:16]} 3. c4 {[%emt 0:00:06]} c6 {[%emt 0:00:39]} 4. cxd5 {[%emt 0:00:10]} cxd5 {[%emt 0:00:12]} 5. Nc3 {[%emt 0:00:01]} Bf5 {[%emt 0:00:18]} 6. Bf4 {[%emt 0:00:17]} Nc6 {[%emt 0:00:14]} 7. a3 {[%emt 0:00:10]} e6 {[%emt 0:00:23]} 8. e3 {[%emt 0:00:10]} a6 {[%emt 0:00:16]} 9. Bd3 {[%emt 0:00:06]} Bg6 {[%emt 0:00:49]} 10. h3 {[%emt 0:00:29]} Bd6 {[%emt 0:01:09]} 11. Bxd6 {[%emt 0:00:10]} Qxd6 {[%emt 0:00:49]} 12. Rc1 {[%emt 0:00:07]} O-O {[%emt 0:00:21]} 13. Bxg6 {[%emt 0:00:07]} fxg6 {[%emt 0:00:08]} 14. O-O {[%emt 0:00:59]} Rac8 {[%emt 0:00:54]} 15. b4 {[%emt 0:01:52]} b5 {[%emt 0:02:03]} 16. Nd2 {[%emt 0:02:57]} Nb8 {[%emt 0:04:05]} 17. Nb3 {[%emt 0:01:01]} Nbd7 {[%emt 0:00:22]} 18. Nc5 {[%emt 0:01:36]} e5 {[%emt 0:01:52]} 19. Qb3 {[%emt 0:09:01]} Rfe8 {[%emt 0:09:51]} 20. Rcd1 {[%emt 0:08:02]} 1/2-1/2

[Event "LJ Slovak Open 2022"]
[Site "Liptovsky Jan"]
[Date "2022.06.26"]
[Round "7.30"]
[White "Brida, Lukas"]
[Black "Pisarcik, Richard"]
[Result "1/2-1/2"]
[ECO "A52"]
[WhiteElo "1673"]
[BlackElo "1343"]
[Annotator "NA RC"]
[PlyCount "75"]
[EventDate "2022.06.23"]
[EventType "swiss"]
[EventCountry "SVK"]
[SourceTitle "playchess.com"]
[Source "ChessBase"]
[SourceQuality "1"]
[TimeControl "3600+30"]

1. d4 {[%emt 0:00:04]} Nf6 {[%emt 0:00:16]} 2. c4 {[%emt 0:00:06]} e5 {[%emt 0:01:32]} 3. dxe5 {[%emt 0:00:07]} Ng4 {[%emt 0:00:07]} 4. e4 {[%emt 0:00:18]} Nxe5 {[%emt 0:00:15]} 5. f4 {[%emt 0:00:06]} Nec6 {[%emt 0:01:04]} 6. Nc3 {[%emt 0:00:13]} Bb4 {[%emt 0:00:23]} 7. Nge2 {[%emt 0:00:19]} Qe7 {[%emt 0:00:56]} 8. Qd3 {[%emt 0:00:28]} d6 {[%emt 0:00:41]} 9. g3 {[%emt 0:11:22]} Bxc3+ {[%emt 0:01:37]} 10. Nxc3 {[%emt 0:00:15]} Na6 {[%emt 0:00:35]} 11. Bg2 {[%emt 0:01:40]} Nab4 {[%emt 0:01:30]} 12. Qd1 {[%emt 0:01:07]} Bg4 {[%emt 0:00:53]} 13. Qxg4 {[%emt 0:01:45]} Nc2+ {[%emt 0:00:35]} 14. Kf2 {[%emt 0:00:13]} Nxa1 {[%emt 0:01:00]} 15. Nd5 {[%emt 0:01:36]} Qd7 {[%emt 0:01:14]} 16. Qxg7 {[%emt 0:01:35]} O-O-O {[%emt 0:00:37]} 17. h4 {[%emt 0:00:54]} Kb8 {[%emt 0:02:23]} 18. Qc3 {[%emt 0:01:47]} Ne7 {[%emt 0:04:41]} 19. Be3 {[%emt 0:01:14]} Nxd5 {[%emt 0:01:19]} 20. cxd5 {[%emt 0:00:07]} Rhg8 {[%emt 0:01:30]} 21. Bh3 {[%emt 0:02:20]} Qe7 {[%emt 0:02:11]} 22. Qd4 {[%emt 0:00:18]} b6 {[%emt 0:00:41]} 23. Rxa1 {[%emt 0:00:07]} Ka8 {[%emt 0:01:08]} 24. a4 {[%emt 0:00:18]} c5 {[%emt 0:00:19]} 25. dxc6 {[%emt 0:00:18]} Rxg3 {[%emt 0:10:23]} 26. Qd5 {[%emt 0:02:57]} Kb8 {[%emt 0:01:43]} 27. Kxg3 {[%emt 0:00:42]} Rg8+ {[%emt 0:01:07]} 28. Kf3 {[%emt 0:00:17]} Qxh4 {[%emt 0:01:07]} 29. c7+ {[%emt 0:00:18]} Kxc7 {[%emt 0:00:18]} 30. Rc1+ {[%emt 0:00:33]} Kb8 {[%emt 0:00:05]} 31. Qxd6+ {[%emt 0:00:07]} Ka8 {[%emt 0:00:18]} 32. Rc8+ {[%emt 0:01:35]} Rxc8 {[%emt 0:00:38]} 33. Bxc8 {[%emt 0:00:07]} Qh1+ {[%emt 0:00:03]} 34. Ke2 {[%emt 0:00:42]} Qxe4 {[%emt 0:02:35]} 35. Qc7 {[%emt 0:01:38]} Qg2+ {[%emt 0:01:50]} 36. Kd3 {[%emt 0:02:05]} Qd5+ {[%emt 0:00:35]} 37. Kc3 {[%emt 0:00:21]} Qa5+ {[%emt 0:01:32]} 38. b4 {[%emt 0:00:12]} 1/2-1/2

[Event "LJ Slovak Open 2022"]
[Site "Liptovsky Jan"]
[Date "2022.06.26"]
[Round "7.32"]
[White "Subjakova, Kristina"]
[Black "Carnecky, Viliam"]
[Result "1/2-1/2"]
[ECO "B22"]
[WhiteElo "1623"]
[BlackElo "1380"]
[Annotator "NA RC"]
[PlyCount "129"]
[EventDate "2022.06.23"]
[EventType "swiss"]
[EventCountry "SVK"]
[SourceTitle "playchess.com"]
[Source "ChessBase"]
[SourceQuality "1"]
[TimeControl "3600+30"]

1. e4 {[%emt 0:00:02]} c6 {[%emt 0:00:04]} 2. c4 {[%emt 0:00:05]} d5 {[%emt 0:00:15]} 3. cxd5 {[%emt 0:00:07]} cxd5 {[%emt 0:00:17]} 4. exd5 {[%emt 0:00:08]} Qxd5 {[%emt 0:00:44]} 5. Nc3 {[%emt 0:00:08]} Qd8 {[%emt 0:01:09]} 6. d4 {[%emt 0:00:09]} e6 {[%emt 0:01:21]} 7. Nf3 {[%emt 0:00:39]} Nf6 {[%emt 0:02:31]} 8. Bf4 {[%emt 0:04:03]} Nbd7 {[%emt 0:01:55]} 9. Rc1 {[%emt 0:05:56]} a6 {[%emt 0:02:12]} 10. Bc4 {[%emt 0:02:57]} Be7 {[%emt 0:01:27]} 11. O-O {[%emt 0:00:38]} O-O {[%emt 0:00:12]} 12. d5 {[%emt 0:07:04]} Nb6 {[%emt 0:05:51]} 13. d6 {[%emt 0:02:11]} Nxc4 {[%emt 0:03:14]} 14. dxe7 {[%emt 0:00:10]} Qxe7 {[%emt 0:01:04]} 15. Na4 {[%emt 0:03:03]} Rd8 {[%emt 0:07:52]} 16. Qe2 {[%emt 0:03:28]} b5 {[%emt 0:07:32]} 17. b3 {[%emt 0:00:51]} Nd6 {[%emt 0:02:46]} 18. Nc5 {[%emt 0:06:29]} Bb7 {[%emt 0:06:44]} 19. Nxb7 {[%emt 0:03:56]} Qxb7 {[%emt 0:00:18]} 20. Rfd1 {[%emt 0:05:18]} Qe4 {[%emt 0:05:20]} 21. Be3 {[%emt 0:04:04]} Nf5 {[%emt 0:02:20]} 22. Ng5 {[%emt 0:01:48]} Qb7 {[%emt 0:01:51]} 23. Bf4 {[%emt 0:02:59]} Rxd1+ {[%emt 0:03:02]} 24. Qxd1 {[%emt 0:00:38]} Nd5 {[%emt 0:00:18]} 25. Qf3 {[%emt 0:01:26]} Rc8 {[%emt 0:01:57]} 26. Kf1 {[%emt 0:02:47]} h6 {[%emt 0:02:02]} 27. Ne4 {[%emt 0:03:31]} Qd7 {[%emt 0:05:15]} 28. Nc5 {[%emt 0:02:21]} Nxf4 {[%emt 0:02:04]} 29. Qxf4 {[%emt 0:00:11]} Qd4 {[%emt 0:00:50]} 30. Qxd4 {[%emt 0:01:20]} Nxd4 {[%emt 0:00:04]} 31. b4 {[%emt 0:00:35]} Rc6 {[%emt 0:01:06]} 32. Ke1 {[%emt 0:00:14]} e5 {[%emt 0:00:25]} 33. Kd2 {[%emt 0:00:39]} f6 {[%emt 0:00:18]} 34. Kd3 {[%emt 0:00:13]} Kf7 {[%emt 0:00:43]} 35. Ke4 {[%emt 0:00:22]} Ke7 {[%emt 0:00:28]} 36. g3 {[%emt 0:01:49]} Rb6 {[%emt 0:01:09]} 37. f4 {[%emt 0:00:29]} Nc6 {[%emt 0:00:18]} 38. a3 {[%emt 0:00:56]} exf4 {[%emt 0:01:14]} 39. gxf4 {[%emt 0:02:03]} a5 {[%emt 0:00:35]} 40. Kf5 {[%emt 0:00:41]} axb4 {[%emt 0:00:44]} 41. axb4 {[%emt 0:00:12]} Kf7 {[%emt 0:00:24]} 42. Nd3 {[%emt 0:01:17]} g6+ {[%emt 0:00:29]} 43. Ke4 {[%emt 0:00:08]} f5+ {[%emt 0:00:04]} 44. Kd5 {[%emt 0:00:21]} Ne7+ {[%emt 0:00:37]} 45. Kc5 {[%emt 0:00:09]} Rb8 {[%emt 0:00:11]} 46. Ra1 {[%emt 0:02:05]} Rd8 {[%emt 0:00:21]} 47. Ne5+ {[%emt 0:00:09]} Kf6 {[%emt 0:00:21]} 48. Ra6+ {[%emt 0:00:08]} Kg7 {[%emt 0:00:09]} 49. Kxb5 {[%emt 0:00:35]} g5 {[%emt 0:00:26]} 50. fxg5 {[%emt 0:00:21]} Rd5+ {[%emt 0:00:17]} 51. Kc4 {[%emt 0:00:10]} Rxe5 {[%emt 0:00:21]} 52. Rxh6 {[%emt 0:00:25]} Ng6 {[%emt 0:00:34]} 53. b5 {[%emt 0:01:28]} f4 {[%emt 0:01:10]} 54. Rh3 {[%emt 0:00:25]} Rf5 {[%emt 0:01:05]} 55. Ra3 {[%emt 0:00:28]} f3 {[%emt 0:00:36]} 56. Ra7+ {[%emt 0:00:50]} Kf8 {[%emt 0:00:14]} 57. Ra1 {[%emt 0:00:29]} f2 {[%emt 0:00:20]} 58. Rf1 {[%emt 0:00:05]} Ne5+ {[%emt 0:00:08]} 59. Kb4 {[%emt 0:01:20]} Nd7 {[%emt 0:01:05]} 60. Ka5 {[%emt 0:00:39]} Kg7 {[%emt 0:00:24]} 61. h4 {[%emt 0:00:23]} Kg6 {[%emt 0:00:17]} 62. Ka6 {[%emt 0:00:34]} Rf4 {[%emt 0:00:44]} 63. b6 {[%emt 0:00:43]} Nxb6 {[%emt 0:00:05]} 64. Kxb6 {[%emt 0:00:12]} Rxh4 {[%emt 0:00:03]} 65. Rxf2 {[%emt 0:00:10]} 1/2-1/2

[Event "LJ Slovak Open 2022"]
[Site "Liptovsky Jan"]
[Date "2022.06.26"]
[Round "7.33"]
[White "Freibergs, Filips"]
[Black "Marcek, Jan"]
[Result "1-0"]
[ECO "A40"]
[WhiteElo "1250"]
[BlackElo "1588"]
[Annotator "NA RC"]
[PlyCount "34"]
[EventDate "2022.06.23"]
[EventType "swiss"]
[EventCountry "SVK"]
[SourceTitle "playchess.com"]
[Source "ChessBase"]
[SourceQuality "1"]
[TimeControl "3600+30"]

1. d4 {[%emt 0:00:05]} e6 {[%emt 0:00:06]} 2. Nf3 {[%emt 0:00:08]} d6 {[%emt 0:00:06]} 3. e3 {[%emt 0:00:08]} Nd7 {[%emt 0:00:14]} 4. Nbd2 {[%emt 0:00:07]} a6 {[%emt 0:00:31]} 5. b3 {[%emt 0:00:22]} Be7 {[%emt 0:00:57]} 6. Bb2 {[%emt 0:00:18]} b6 {[%emt 0:01:14]} 7. Bd3 {[%emt 0:00:51]} Bb7 {[%emt 0:00:40]} 8. O-O {[%emt 0:00:27]} Ngf6 {[%emt 0:00:48]} 9. c4 {[%emt 0:01:38]} c5 {[%emt 0:03:57]} 10. Qc2 {[%emt 0:05:35]} Rc8 {[%emt 0:01:05]} 11. Ne4 {[%emt 0:01:50]} cxd4 {[%emt 0:02:33]} 12. Bxd4 {[%emt 0:02:09]} e5 {[%emt 0:01:16]} 13. Bb2 {[%emt 0:00:53]} h6 {[%emt 0:04:07]} 14. Rad1 {[%emt 0:02:44]} Qc7 {[%emt 0:01:02]} 15. Rd2 {[%emt 0:07:28]} Nc5 {[%emt 0:02:43]} 16. Nxf6+ {[%emt 0:04:36]} gxf6 {[%emt 0:01:40]} 17. Bf5 {[%emt 0:02:47]} Rg8 {[%emt 0:10:30]} 1-0

[Event "LJ Slovak Open 2022"]
[Site "Liptovsky Jan"]
[Date "2022.06.26"]
[Round "7.34"]
[White "Mikula, Maciej"]
[Black "Stric, Dusan"]
[Result "1-0"]
[ECO "B06"]
[WhiteElo "1567"]
[BlackElo "2021"]
[Annotator "NA RC"]
[PlyCount "147"]
[EventDate "2022.06.23"]
[EventType "swiss"]
[EventCountry "SVK"]
[SourceTitle "playchess.com"]
[Source "ChessBase"]
[SourceQuality "1"]
[TimeControl "3600+30"]

1. d4 {[%emt 0:00:36]} g6 {[%emt 0:02:41]} 2. Nf3 {[%emt 0:00:52]} Bg7 {[%emt 0:00:03]} 3. e4 {[%emt 0:02:11]} d6 {[%emt 0:00:08]} 4. c3 {[%emt 0:01:26]} Nd7 {[%emt 0:00:04]} 5. Bd3 {[%emt 0:00:56]} e5 {[%emt 0:00:14]} 6. O-O {[%emt 0:01:15]} Ne7 {[%emt 0:00:20]} 7. Be3 {[%emt 0:01:38]} O-O {[%emt 0:00:04]} 8. Re1 {[%emt 0:01:27]} h6 $14 {[%emt 0:00:15]} 9. dxe5 {[%emt 0:01:45]} Nxe5 {[%emt 0:04:22]} 10. Be2 {[%emt 0:04:39]} Kh7 {[%emt 0:01:38]} 11. Nxe5 {[%emt 0:00:53]} Bxe5 {[%emt 0:01:05]} 12. Bd4 {[%emt 0:02:50]} Bxd4 {[%emt 0:03:37]} 13. cxd4 {[%emt 0:00:37]} f5 {[%emt 0:00:33]} 14. f3 {[%emt 0:06:13]} c6 {[%emt 0:07:35]} 15. Nc3 {[%emt 0:06:27]} fxe4 {[%emt 0:01:10]} 16. fxe4 {[%emt 0:00:54]} d5 {[%emt 0:00:10]} 17. Qb3 {[%emt 0:09:59]} dxe4 {[%emt 0:01:25]} 18. Rad1 {[%emt 0:00:15]} Nd5 {[%emt 0:06:22]} 19. Nxe4 {[%emt 0:02:14]} Rb8 {[%emt 0:07:09]} 20. Bf3 {[%emt 0:01:43]} Qb6 {[%emt 0:07:07]} 21. Qxb6 {[%emt 0:01:39]} Nxb6 {[%emt 0:01:02]} 22. Nd6 {[%emt 0:00:31]} Rd8 {[%emt 0:03:36]} 23. Re7+ {[%emt 0:01:55]} Kg8 {[%emt 0:00:02]} 24. Nf7 {[%emt 0:01:03]} Kf8 {[%emt 0:08:11]} 25. Rde1 {[%emt 0:02:45]} Rxd4 {[%emt 0:00:03]} 26. Nxh6 {[%emt 0:00:50]} Rf4 {[%emt 0:01:48]} 27. Re8+ {[%emt 0:02:56]} Kg7 {[%emt 0:00:13]} 28. Ng8 {[%emt 0:00:29]} Rf7 {[%emt 0:01:56]} 29. Ne7 {[%emt 0:00:53]} Ra8 {[%emt 0:01:23]} 30. Rg8+ {[%emt 0:00:33]} Kh7 {[%emt 0:00:34]} 31. Re8 {[%emt 0:03:51]} Bd7 {[%emt 0:00:03]} 32. Rxa8 {[%emt 0:00:48]} Nxa8 {[%emt 0:00:02]} 33. h4 {[%emt 0:00:41]} Nc7 {[%emt 0:02:41]} 34. Be4 {[%emt 0:01:04]} Kg7 {[%emt 0:03:54]} 35. Bxg6 {[%emt 0:00:49]} Rf6 {[%emt 0:00:20]} 36. h5 {[%emt 0:01:38]} Be6 {[%emt 0:00:43]} 37. Nf5+ {[%emt 0:02:20]} Bxf5 {[%emt 0:01:44]} 38. Re7+ {[%emt 0:00:05]} Kh6 {[%emt 0:00:06]} 39. Rxc7 {[%emt 0:00:33]} Be6 {[%emt 0:03:03]} 40. Rxb7 {[%emt 0:01:45]} Bxa2 {[%emt 0:00:21]} 41. Rxa7 {[%emt 0:00:18]} Bc4 {[%emt 0:00:24]} 42. Ra1 {[%emt 0:03:52]} Kg5 {[%emt 0:00:19]} 43. Re1 {[%emt 0:00:27]} Bd5 {[%emt 0:00:37]} 44. Rf1 {[%emt 0:00:31]} Re6 {[%emt 0:00:09]} 45. Bf7 {[%emt 0:00:51]} Re2 {[%emt 0:00:40]} 46. Bxd5 {[%emt 0:00:31]} cxd5 {[%emt 0:00:04]} 47. Rd1 {[%emt 0:00:48]} Rxb2 {[%emt 0:01:28]} 48. Rxd5+ {[%emt 0:00:06]} Kh6 {[%emt 0:00:06]} 49. Kh2 {[%emt 0:00:13]} Ra2 {[%emt 0:00:08]} 50. Kh3 {[%emt 0:00:09]} Ra1 {[%emt 0:01:02]} 51. Kh4 {[%emt 0:00:18]} Rh1+ {[%emt 0:00:27]} 52. Kg4 {[%emt 0:00:05]} Rg1 {[%emt 0:00:19]} 53. Rd6+ {[%emt 0:00:23]} Kh7 {[%emt 0:00:03]} 54. g3 {[%emt 0:00:09]} Rg2 {[%emt 0:01:00]} 55. Kh4 {[%emt 0:00:15]} Rh2+ {[%emt 0:00:09]} 56. Kg5 {[%emt 0:00:11]} Rg2 {[%emt 0:00:18]} 57. Rd7+ {[%emt 0:00:09]} Kg8 {[%emt 0:00:09]} 58. g4 {[%emt 0:00:06]} Rg1 {[%emt 0:00:33]} 59. h6 {[%emt 0:00:39]} Ra1 {[%emt 0:02:02]} 60. Rd8+ {[%emt 0:00:53]} Kh7 {[%emt 0:00:04]} 61. Rd7+ {[%emt 0:00:02]} Kg8 {[%emt 0:00:01]} 62. Kh5 {[%emt 0:00:59]} Ra5+ {[%emt 0:00:15]} 63. g5 {[%emt 0:00:37]} Rb5 {[%emt 0:00:01]} 64. Rg7+ {[%emt 0:00:20]} Kh8 {[%emt 0:00:06]} 65. Rf7 {[%emt 0:00:41]} Kg8 {[%emt 0:00:04]} 66. Rg7+ {[%emt 0:00:22]} Kh8 {[%emt 0:00:02]} 67. Re7 {[%emt 0:00:15]} Kg8 {[%emt 0:00:08]} 68. Kg6 {[%emt 0:00:16]} Rb6+ {[%emt 0:00:04]} 69. Kf5 {[%emt 0:00:09]} Rb5+ {[%emt 0:00:07]} 70. Re5 {[%emt 0:00:04]} Rb6 {[%emt 0:00:05]} 71. g6 {[%emt 0:00:09]} Rb8 {[%emt 0:00:33]} 72. Kg5 {[%emt 0:00:34]} Ra8 {[%emt 0:01:01]} 73. h7+ {[%emt 0:00:19]} Kh8 {[%emt 0:03:16]} 74. Kh6 {[%emt 0:00:35]} 1-0

[Event "LJ Slovak Open 2022"]
[Site "Liptovsky Jan"]
[Date "2022.06.26"]
[Round "7.35"]
[White "Koren, Juraj"]
[Black "Gajdosik, Marian"]
[Result "0-1"]
[ECO "A22"]
[WhiteElo "1506"]
[BlackElo "1902"]
[Annotator "NA RC"]
[PlyCount "61"]
[EventDate "2022.06.23"]
[EventType "swiss"]
[EventCountry "SVK"]
[SourceTitle "playchess.com"]
[Source "ChessBase"]
[SourceQuality "1"]
[TimeControl "3600+30"]

1. c4 {[%emt 0:00:04]} e5 {[%emt 0:04:49]} 2. Nc3 {[%emt 0:00:09]} Bb4 {[%emt 0:00:10]} 3. g3 {[%emt 0:00:31]} c6 {[%emt 0:00:06]} 4. Bg2 {[%emt 0:00:17]} Nf6 {[%emt 0:00:18]} 5. e3 {[%emt 0:00:27]} O-O {[%emt 0:00:44]} 6. Nge2 {[%emt 0:00:06]} d6 {[%emt 0:00:25]} 7. O-O {[%emt 0:00:09]} Nbd7 {[%emt 0:00:50]} 8. d4 {[%emt 0:03:25]} Qe7 {[%emt 0:00:06]} 9. Bd2 {[%emt 0:02:35]} Ba5 {[%emt 0:01:12]} 10. a3 {[%emt 0:03:16]} Bc7 {[%emt 0:00:07]} 11. b4 {[%emt 0:00:09]} Re8 {[%emt 0:02:08]} 12. a4 {[%emt 0:02:37]} Nf8 {[%emt 0:01:55]} 13. b5 {[%emt 0:01:46]} Bd7 {[%emt 0:00:10]} 14. Re1 {[%emt 0:04:22]} Ng6 {[%emt 0:03:29]} 15. d5 {[%emt 0:02:31]} c5 {[%emt 0:02:08]} 16. a5 {[%emt 0:01:49]} Bd8 {[%emt 0:01:59]} 17. Na4 {[%emt 0:01:04]} Rc8 {[%emt 0:00:44]} 18. a6 {[%emt 0:05:23]} b6 {[%emt 0:00:36]} 19. Nac3 {[%emt 0:00:11]} h5 {[%emt 0:03:13]} 20. e4 {[%emt 0:00:37]} h4 {[%emt 0:00:43]} 21. Bg5 {[%emt 0:01:36]} h3 {[%emt 0:00:15]} 22. Bh1 {[%emt 0:04:29]} Qf8 {[%emt 0:00:13]} 23. Bxf6 {[%emt 0:01:32]} Bxf6 {[%emt 0:00:14]} 24. f4 {[%emt 0:02:07]} exf4 {[%emt 0:01:11]} 25. Nxf4 {[%emt 0:01:08]} Nxf4 {[%emt 0:00:12]} 26. gxf4 {[%emt 0:00:15]} Bxc3 {[%emt 0:00:09]} 27. f5 {[%emt 0:02:37]} Qe7 {[%emt 0:00:42]} 28. Qh5 {[%emt 0:00:54]} Qe5 {[%emt 0:01:54]} 29. Ra3 {[%emt 0:01:24]} Bxe1 {[%emt 0:06:52]} 30. Rxh3 {[%emt 0:00:24]} Qd4+ {[%emt 0:00:33]} 31. Kf1 {[%emt 0:00:25]} 0-1

[Event "LJ Slovak Open 2022"]
[Site "Liptovsky Jan"]
[Date "2022.06.26"]
[Round "7.36"]
[White "Ciglian, Michal"]
[Black "Vastik, Tomas"]
[Result "1/2-1/2"]
[ECO "A23"]
[WhiteElo "1704"]
[BlackElo "1457"]
[Annotator "NA RC"]
[PlyCount "47"]
[EventDate "2022.06.23"]
[EventType "swiss"]
[EventCountry "SVK"]
[SourceTitle "playchess.com"]
[Source "ChessBase"]
[SourceQuality "1"]
[TimeControl "3600+30"]

1. c4 {[%emt 0:00:03]} e5 {[%emt 0:00:07]} 2. Nc3 {[%emt 0:00:07]} Nf6 {[%emt 0:00:14]} 3. g3 {[%emt 0:00:13]} c6 {[%emt 0:00:20]} 4. Bg2 {[%emt 0:00:06]} Bc5 {[%emt 0:00:50]} 5. e3 {[%emt 0:00:40]} d6 {[%emt 0:00:28]} 6. Nge2 {[%emt 0:00:18]} a6 {[%emt 0:00:37]} 7. O-O {[%emt 0:00:26]} O-O {[%emt 0:00:18]} 8. b3 {[%emt 0:00:55]} Re8 {[%emt 0:00:35]} 9. Bb2 {[%emt 0:00:15]} Bf5 {[%emt 0:01:54]} 10. d4 {[%emt 0:01:11]} exd4 {[%emt 0:01:16]} 11. Nxd4 {[%emt 0:00:18]} Bxd4 {[%emt 0:00:24]} 12. Qxd4 {[%emt 0:00:16]} Be6 {[%emt 0:02:03]} 13. e4 {[%emt 0:01:38]} c5 {[%emt 0:01:15]} 14. Qd3 {[%emt 0:00:16]} Re7 {[%emt 0:02:41]} 15. Rad1 {[%emt 0:01:08]} Rd7 {[%emt 0:01:15]} 16. h3 {[%emt 0:01:52]} Nc6 {[%emt 0:00:32]} 17. f4 {[%emt 0:00:28]} Re7 {[%emt 0:01:22]} 18. Nd5 {[%emt 0:00:26]} Ne8 {[%emt 0:02:05]} 19. Kh1 {[%emt 0:01:42]} f6 {[%emt 0:03:09]} 20. f5 {[%emt 0:06:32]} h6 {[%emt 0:02:08]} 21. h4 {[%emt 0:02:06]} Kh7 {[%emt 0:04:55]} 22. g4 {[%emt 0:07:35]} Kg8 {[%emt 0:10:18]} 23. Kg1 {[%emt 0:02:47]} Kf8 {[%emt 0:01:14]} 24. g5 {[%emt 0:02:36]} 1/2-1/2